bitfinex/quotes_SOLUSD_20241105
["timestamp","ask_amount","ask_price","bid_price","bid_amount"]
[1730818879119,6.079,167.25,167.16,35.75749214]
[1730818879300,35.75749214,167.2,167.14,59.53437614]
[1730818879607,0.1,167.17,167.07,6.25037924]
[1730818879791,0.1,167.17,167.06,0.3291561]
[1730818879990,5.9822,167.16,167.07,20.9491]
[1730818880512,0.25098,167.15,167.07,20.9491]
[1730818880719,35.75749214,167.1,167.07,20.9491]
[1730818881010,35.75749214,167.12,167.07,20.9491]
[1730818881215,35.75749214,167.14,167.08,35.75749214]
[1730818881393,35.75749214,167.11,167.07,20.9491]
[1730818881590,35.75749214,167.14,167.08,35.75749214]
[1730818881813,35.75749214,167.14,167.07,20.9491]
[1730818882192,5.9815,167.18,167.07,20.9491]
[1730818882193,35.75749214,167.11,167.07,20.9491]
[1730818882403,0.1,167.17,167.07,20.9491]
[1730818882404,35.75749214,167.13,167.07,56.70659214]
[1730818882603,35.75749214,167.12,167.07,20.9491]
[1730818882894,35.75749214,167.16,167.1,35.75749214]
[1730818883101,35.75749214,167.15,167.09,56.70409214]
[1730818883508,35.75749214,167.14,167.09,20.9466]
[1730818883814,35.75749214,167.15,167.09,56.70409214]
[1730818883999,35.75749214,167.12,167.09,20.9466]
[1730818884197,35.75749214,167.11,167.09,20.9466]
[1730818884399,35.75749214,167.11,167.09,14.9619]
[1730818885211,35.75749214,167.12,167.09,14.9619]
[1730818885395,35.75749214,167.12,167.07,35.913]
[1730818886089,35.75749214,167.09,167.06,0.3291561]
[1730818886287,5.983,167.14,167.06,21.2795561]
[1730818886288,3.53703727,167.08,167.06,21.2795561]
[1730818886509,3.53703727,167.08,167.07,35.88298214]
[1730818887013,5.89506212,167.14,167.08,0.12549]
[1730818887191,3.53858449,167.13,167.1,0.12549]
[1730818887387,5.89506212,167.14,167.09,21.1466]
[1730818887388,5.89506212,167.14,167.13,44.153354]
[1730818887612,38.85219852,167.22,167.15,20.0]
[1730818887814,35.75749214,167.19,167.14,35.75749214]
[1730818888219,35.75749214,167.16,167.11,35.75749214]
[1730818888412,3.53993033,167.15,167.11,79.53437614]
[1730818888719,35.75749214,167.17,167.11,79.53437614]
[1730818888920,35.75749214,167.14,167.09,50.8705]
[1730818889096,35.75749214,167.11,167.09,14.9619]
[1730818889294,0.1,167.17,167.09,14.9619]
[1730818889295,35.75749214,167.13,167.09,14.9619]
[1730818889626,35.75749214,167.14,167.09,14.9619]
[1730818889797,35.75749214,167.14,167.09,15.0034888]
[1730818890215,35.75749214,167.11,167.09,15.0034888]
[1730818890398,35.75749214,167.1,167.09,0.0415888]
[1730818890819,0.25098,167.13,167.09,0.0415888]
[1730818891015,0.35098,167.13,167.09,0.0415888]
[1730818891219,5.9837,167.12,167.09,0.0415888]
[1730818891427,0.25098,167.11,167.09,0.0415888]
[1730818891719,3.54178426,167.1,167.09,0.0415888]
[1730818892414,79.98535614,167.1,167.09,0.0415888]
[1730818892616,0.1,167.07,167.06,0.3106475]
[1730818892807,47.76992944,167.07,167.06,0.3106475]
[1730818893122,52.19939428,167.07,167.06,0.3106475]
[1730818893416,105.45690326,167.07,167.06,0.3106475]
[1730818893810,148.30186781,167.07,167.06,0.3106475]
[1730818894009,148.30250872,167.07,167.06,0.3106475]
[1730818894224,0.45098,167.04,166.97,0.3106475]
[1730818894434,35.75749214,166.98,166.97,0.3106475]
[1730818894814,36.00847214,166.98,166.97,0.3106475]
[1730818895308,77.75466428,166.98,166.97,0.3106475]
[1730818895518,121.73154828,166.98,166.97,0.3106475]
[1730818895852,121.73154828,166.98,166.89,0.3106475]
[1730818895853,20.35098,166.95,166.89,0.3106475]
[1730818896126,38.85510401,166.9,166.89,0.3106475]
[1730818896299,38.85141617,166.9,166.89,0.3106475]
[1730818896498,35.75749214,166.92,166.89,6.3025475]
[1730818896704,38.85164715,166.9,166.89,0.3106475]
[1730818897312,20.35098,166.95,166.89,0.3106475]
[1730818897313,35.75749214,166.91,166.89,0.3106475]
[1730818897513,26.34078,166.95,166.89,0.3106475]
[1730818897514,35.75749214,166.9,166.89,0.3106475]
[1730818897702,38.84844824,166.9,166.89,0.3106475]
[1730818898315,35.75749214,166.9,166.89,0.3106475]
[1730818898927,35.75749214,166.9,166.89,6.3025475]
[1730818899127,3.08790937,166.9,166.89,21.2824475]
[1730818899310,35.75749214,166.9,166.89,15.2905475]
[1730818899904,35.75749214,166.9,166.89,0.3106475]
[1730818900326,37.36912022,166.9,166.89,0.3106475]
[1730818900722,37.36912022,166.9,166.81,51.05443964]
[1730818900723,35.75749214,166.85,166.82,5.9944]
[1730818900908,1.61162808,166.9,166.82,56.73809214]
[1730818900909,6.16543536,166.86,166.82,56.73809214]
[1730818901106,3.08261355,166.84,166.82,56.73809214]
[1730818901430,3.08261355,166.84,166.82,20.9806]
[1730818901723,3.08261355,166.83,166.82,20.9806]
[1730818901926,3.08261355,166.85,166.82,20.9806]
[1730818902110,3.08261355,166.86,166.82,20.9806]
[1730818902426,3.08261355,166.85,166.82,20.9806]
[1730818902820,0.1,166.9,166.77,15.5936]
[1730818902821,35.75749214,166.83,166.78,20.9852]
[1730818903127,3.07682193,166.81,166.78,20.9852]
[1730818903367,35.75749214,166.82,166.78,20.9852]
[1730818903368,3.07682193,166.79,166.78,20.9852]
[1730818903538,3.07315654,166.79,166.78,20.9852]
[1730818903738,38.8306892,166.82,166.78,20.9852]
[1730818904033,3.07319706,166.82,166.8,35.75749214]
[1730818904235,3.07319706,166.82,166.78,14.9893]
[1730818904236,35.75749214,166.81,166.78,14.9893]
[1730818904414,3.07319706,166.81,166.78,20.9852]
[1730818904617,3.07319706,166.8,166.78,20.9852]
[1730818904804,3.07319706,166.8,166.78,14.9893]
[1730818905229,3.07319706,166.8,166.75,50.9745]
[1730818905431,3.07319706,166.8,166.77,35.75749214]
[1730818906128,3.07319706,166.8,166.79,35.75749214]
[1730818906329,3.07319706,166.81,166.79,35.75749214]
[1730818906519,3.07319706,166.81,166.78,35.75749214]
[1730818906718,35.75749214,166.84,166.78,35.75749214]
[1730818906919,35.75749214,166.85,166.79,35.75749214]
[1730818907119,35.75749214,166.84,166.78,35.75749214]
[1730818907319,38.8306892,166.87,166.81,35.75749214]
[1730818907521,3.49483835,166.86,166.81,35.75749214]
[1730818907723,35.75749214,166.87,166.81,35.75749214]
[1730818908049,35.75749214,166.86,166.8,35.75749214]
[1730818908841,35.75749214,166.86,166.81,35.75749214]
[1730818909022,35.75749214,166.86,166.78,0.12549]
[1730818909023,35.75749214,166.86,166.82,20.9806]
[1730818909718,35.75749214,166.85,166.82,20.9806]
[1730818909917,35.75749214,166.86,166.82,20.9806]
[1730818910241,35.75749214,166.92,166.85,35.75749214]
[1730818910417,3.49140589,166.91,166.82,50.953]
[1730818910734,9.17824806,166.9,166.82,50.953]
[1730818911035,3.49140589,166.9,166.82,29.9724]
[1730818911633,35.75749214,166.88,166.83,35.75749214]
[1730818911811,35.75749214,166.89,166.82,29.9724]
[1730818912020,35.75749214,166.87,166.82,65.72989214]
[1730818912326,35.75749214,166.85,166.79,35.75749214]
[1730818912511,0.1,166.88,166.78,35.75749214]
[1730818912512,35.75749214,166.84,166.78,35.75749214]
[1730818912715,35.75749214,166.83,166.78,35.75749214]
[1730818912909,35.75749214,166.83,166.77,65.73889214]
[1730818913126,35.75749214,166.82,166.77,20.9869]
[1730818913714,35.75749214,166.81,166.77,20.9869]
[1730818914231,35.75749214,166.78,166.74,0.3975271]
[1730818914430,35.75749214,166.75,166.74,0.3975271]
[1730818914645,35.75749214,166.78,166.74,6.3948271]
[1730818914839,35.75749214,166.78,166.74,21.3882271]
[1730818915140,3.50118962,166.77,166.74,57.14571924]
[1730818915342,35.75749214,166.79,166.74,14.43881857]
[1730818915539,3.50258003,166.78,166.74,14.43881857]
[1730818915854,3.50258003,166.78,166.75,35.75749214]
[1730818916447,3.50258003,166.78,166.74,56.19361071]
[1730818916742,3.50258003,166.78,166.74,20.43611857]
[1730818916951,3.50258003,166.78,166.74,56.19361071]
[1730818917136,39.26007217,166.78,166.74,20.43611857]
[1730818917334,39.26007217,166.78,166.72,5.998]
[1730818917335,35.75749214,166.76,166.72,5.998]
[1730818917552,55.75749214,166.75,166.7,5.9985]
[1730818917849,55.75749214,166.75,166.72,14.9952]
[1730818918150,35.75749214,166.75,166.72,14.9952]
[1730818918353,3.50258003,166.78,166.74,35.75749214]
[1730818918730,3.50258003,166.78,166.75,35.75749214]
[1730818919031,3.5018596,166.77,166.73,35.75749214]
[1730818919352,35.75749214,166.79,166.73,35.75749214]
[1730818919555,3.50156632,166.76,166.73,35.75749214]
[1730818919738,3.50156632,166.76,166.74,35.75749214]
[1730818920227,3.50156632,166.76,166.75,35.75749214]
[1730818920429,3.50156632,166.76,166.75,79.65986614]
[1730818920761,3.50156632,166.76,166.75,86.12176614]
[1730818921231,3.50156632,166.76,166.75,92.11876614]
[1730818921667,3.50156632,166.76,166.75,108.28154614]
[1730818921668,6.632e-05,166.76,166.75,108.28154614]
[1730818921830,35.75749214,166.93,166.8,23.902374]
[1730818922029,35.75749214,166.91,166.85,35.75749214]
[1730818922232,5.60310789,166.92,166.83,35.75749214]
[1730818922233,0.1,166.92,166.83,35.75749214]
[1730818922432,0.1,166.89,166.76,23.776884]
[1730818922649,0.2,166.89,166.77,20.0]
[1730818922840,0.1,166.88,166.77,20.0]
[1730818923047,0.1,166.89,166.76,20.0]
[1730818923048,0.1,166.87,166.76,20.0]
[1730818923256,0.2,166.88,166.77,50.9683]
[1730818923539,35.75749214,166.81,166.77,20.9869]
[1730818923756,35.75749214,166.8,166.77,20.9869]
[1730818924240,35.75749214,166.85,166.79,35.75749214]
[1730818924565,5.9924,166.88,166.77,20.9869]
[1730818924566,35.75749214,166.88,166.82,35.75749214]
[1730818924753,0.1,166.9,166.82,35.75749214]
[1730818924754,35.75749214,166.87,166.82,35.75749214]
[1730818924950,35.75749214,166.87,166.81,35.75749214]
[1730818925260,35.75749214,166.86,166.82,14.9862]
[1730818925435,35.75749214,166.87,166.82,14.9862]
[1730818925638,35.75749214,166.88,166.82,50.74369214]
[1730818925888,35.75749214,166.86,166.82,14.9862]
[1730818926180,35.75749214,166.87,166.82,14.9862]
[1730818926649,35.75749214,166.85,166.8,35.75749214]
[1730818926847,35.75749214,166.84,166.79,86.71969214]
[1730818927038,35.75749214,166.85,166.79,86.71969214]
[1730818927439,35.88298214,166.86,166.8,35.75749214]
[1730818927658,35.75749214,166.85,166.8,35.75749214]
[1730818927866,35.88298214,166.87,166.81,35.75749214]
[1730818928164,35.75749214,166.86,166.81,35.75749214]
[1730818928358,35.75749214,166.85,166.79,86.71969214]
[1730818928860,35.75749214,166.83,166.79,20.9844]
[1730818929172,5.9955,166.79,166.72,56.75019214]
[1730818929462,5.9955,166.79,166.72,20.9927]
[1730818929463,35.75749214,166.77,166.72,20.9927]
[1730818929672,35.75749214,166.78,166.72,56.75019214]
[1730818929852,35.75749214,166.8,166.74,35.75749214]
[1730818930051,35.75749214,166.82,166.76,35.75749214]
[1730818930269,35.75749214,166.8,166.75,35.75749214]
[1730818930476,35.75749214,166.81,166.75,35.75749214]
[1730818930766,35.75749214,166.81,166.72,50.9831]
[1730818930767,36.00847214,166.83,166.77,35.75749214]
[1730818930968,35.75749214,166.83,166.77,35.75749214]
[1730818931179,35.75749214,166.81,166.76,35.75749214]
[1730818931339,36.00847214,166.82,166.77,20.9869]
[1730818931865,35.75749214,166.81,166.77,20.9869]
[1730818932052,36.00847214,166.82,166.77,20.9869]
[1730818932667,35.75749214,166.82,166.77,56.74439214]
[1730818932851,35.75749214,166.83,166.77,56.74439214]
[1730818933049,35.75749214,166.85,166.79,35.75749214]
[1730818933455,35.75749214,166.85,166.8,20.9832]
[1730818933769,6.093,166.87,166.81,35.75749214]
[1730818933770,35.75749214,166.87,166.81,35.75749214]
[1730818933961,35.75749214,166.89,166.83,35.75749214]
[1730818934268,35.75749214,166.88,166.83,35.75749214]
[1730818934568,5.9908,166.92,166.81,6.43319]
[1730818934750,5.9908,166.92,166.82,43.776884]
[1730818934946,35.75749214,166.91,166.85,56.73439214]
[1730818935155,35.75749214,166.96,166.9,35.75749214]
[1730818935655,35.75749214,166.97,166.91,35.75749214]
[1730818936062,35.75749214,166.98,166.92,35.75749214]
[1730818936553,4.37936715,166.97,166.95,35.75749214]
[1730818936755,4.37936715,166.97,166.88,52.02849214]
[1730818936756,4.37936715,166.97,166.96,35.75749214]
[1730818937075,35.75749214,167.02,166.97,14.9727]
[1730818937249,35.75749214,167.01,166.95,56.72149214]
[1730818937449,0.1,167.06,166.95,20.964]
[1730818937658,35.75749214,166.99,166.95,14.9745]
[1730818937857,35.75749214,167.0,166.95,14.9745]
[1730818938075,35.75749214,166.99,166.95,14.9745]
[1730818938568,35.75749214,167.01,166.95,56.72179214]
[1730818939258,35.75749214,167.01,166.96,35.75749214]
[1730818939668,35.75749214,167.0,166.95,20.9643]
[1730818939859,35.75749214,167.01,166.95,56.72179214]
[1730818940260,35.75749214,166.99,166.95,14.9745]
[1730818940575,35.75749214,166.97,166.91,57.37379214]
[1730818940755,35.75749214,166.95,166.91,27.6072]
[1730818940957,35.75749214,166.94,166.88,51.92849214]
[1730818941167,35.75749214,166.92,166.87,14.9808]
[1730818941352,43.976884,166.95,166.84,5.9937]
[1730818941558,35.75749214,166.88,166.84,5.9937]
[1730818941756,35.75749214,166.86,166.83,14.9844]
[1730818942184,35.75749214,166.84,166.79,14.9881]
[1730818942478,3.56437989,166.83,166.8,35.75749214]
[1730818942683,3.56437989,166.82,166.79,50.74559214]
[1730818942969,3.56437989,166.81,166.79,14.9881]
[1730818943175,3.56437989,166.8,166.79,20.9833]
[1730818943580,3.56437989,166.8,166.79,56.74079214]
[1730818943775,3.56437989,166.8,166.79,20.9833]
[1730818944165,3.56437989,166.8,166.76,20.9881]
[1730818944473,3.56437989,166.79,166.76,20.9881]
[1730818944666,3.56437989,166.78,166.76,56.74559214]
[1730818944874,3.56437989,166.77,166.76,20.9881]
[1730818945070,3.56437989,166.77,166.75,35.75749214]
[1730818945384,35.75749214,166.82,166.76,35.75749214]
[1730818945567,3.57141881,166.81,166.76,35.75749214]
[1730818945766,3.57141881,166.8,166.75,35.75749214]
[1730818945963,3.57141881,166.79,166.78,35.75749214]
[1730818946164,3.57141881,166.79,166.72,27.25663669]
[1730818946353,105.75749214,166.88,166.72,27.25663669]
[1730818946354,3.57193903,166.78,166.72,27.25663669]
[1730818946555,3.57193903,166.77,166.72,20.9932]
[1730818946770,3.57203359,166.76,166.72,14.9952]
[1730818946982,35.75749214,166.73,166.72,14.9952]
[1730818947282,0.12549,166.72,166.65,15.522]
[1730818947497,0.12549,166.72,166.65,21.0021]
[1730818947498,35.75749214,166.68,166.65,21.0021]
[1730818947690,35.75749214,166.7,166.65,21.0021]
[1730818947898,0.25098,166.79,166.65,21.1021]
[1730818948065,0.1,166.83,166.68,0.22549]
[1730818948066,3.57252016,166.71,166.68,0.22549]
[1730818948406,24.013147,166.83,166.65,21.0021]
[1730818948407,20.1,166.82,166.66,0.22549]
[1730818948562,20.1,166.82,166.66,0.12549]
[1730818948885,0.1,166.82,166.66,20.22549]
[1730818949071,35.75749214,166.76,166.7,35.75749214]
[1730818949262,35.75749214,166.76,166.71,20.9945]
[1730818949461,35.75749214,166.75,166.71,20.9945]
[1730818949691,35.75749214,166.76,166.71,20.9945]
[1730818950194,35.75749214,166.8,166.67,23.876884]
[1730818950195,35.75749214,166.72,166.67,14.9991]
[1730818950368,35.75749214,166.68,166.67,14.9991]
[1730818951085,35.75749214,166.7,166.67,14.9991]
[1730818951382,35.75749214,166.68,166.67,14.9991]
[1730818951585,35.75749214,166.7,166.67,14.9991]
[1730818951789,35.75749214,166.71,166.67,14.9991]
[1730818951970,35.75749214,166.72,166.67,14.9991]
[1730818952170,35.75749214,166.7,166.67,14.9991]
[1730818952488,35.75749214,166.69,166.67,14.9991]
[1730818953083,35.75749214,166.7,166.67,14.9991]
[1730818953687,5.997,166.75,166.67,14.9991]
[1730818953688,35.75749214,166.68,166.67,14.9991]
[1730818953895,35.75749214,166.68,166.65,11.97701394]
[1730818954100,35.75749214,166.67,166.65,11.97701394]
[1730818954469,35.75749214,166.69,166.65,11.97701394]
[1730818954993,35.75749214,166.69,166.65,20.97801394]
[1730818955175,35.75749214,166.7,166.65,20.97801394]
[1730818955367,35.75749214,166.69,166.65,20.97801394]
[1730818955563,35.75749214,166.68,166.65,20.97801394]
[1730818955768,35.75749214,166.67,166.65,20.97801394]
[1730818955990,35.75749214,166.66,166.65,20.97801394]
[1730818956789,35.75749214,166.66,166.65,15.0015]
[1730818956989,35.75749214,166.66,166.63,30.0049]
[1730818957169,35.75749214,166.64,166.63,30.0049]
[1730818957371,22.15394834,166.64,166.63,30.0049]
[1730818957585,22.15394834,166.65,166.63,30.0049]
[1730818957791,22.15394834,166.66,166.63,30.0049]
[1730818958765,0.25098,166.69,166.63,30.0049]
[1730818958766,22.15394834,166.68,166.63,52.15884834]
[1730818958966,22.15394834,166.65,166.63,21.0046]
[1730818959184,22.15394834,166.64,166.63,21.0046]
[1730818960172,22.15394834,166.65,166.63,21.0046]
[1730818960390,22.15394834,166.66,166.63,21.0046]
[1730818960698,22.15394834,166.65,166.63,21.0046]
[1730818960878,22.15394834,166.65,166.63,15.0033]
[1730818961197,22.15394834,166.64,166.63,15.0033]
[1730818961375,22.27943834,166.64,166.63,15.0033]
[1730818961895,0.12549,166.63,166.61,0.4828907]
[1730818962199,22.40492834,166.62,166.61,0.4828907]
[1730818962381,0.25098,166.62,166.61,0.4828907]
[1730818962696,22.40492834,166.62,166.61,0.4828907]
[1730818963075,52.18341234,166.62,166.61,0.4828907]
[1730818963382,52.18341234,166.62,166.56,21.0132]
[1730818963383,0.25098,166.6,166.59,0.7062259]
[1730818963596,22.40492834,166.6,166.59,0.7062259]
[1730818964694,22.27943834,166.6,166.59,0.7062259]
[1730818964994,22.40492834,166.6,166.59,0.7062259]
[1730818965173,42.40492834,166.6,166.59,0.7062259]
[1730818966003,48.40732834,166.6,166.59,0.7062259]
[1730818966296,22.40492834,166.6,166.59,0.7062259]
[1730818967003,22.15394834,166.6,166.59,6.7089259]
[1730818967378,22.15394834,166.6,166.59,0.7062259]
[1730818967776,22.15394834,166.6,166.59,6.7089259]
[1730818968075,22.15394834,166.61,166.59,21.7158259]
[1730818968282,22.15394834,166.6,166.59,21.7158259]
[1730818968482,22.15394834,166.61,166.59,21.7158259]
[1730818968683,16.3393,166.68,166.59,21.7158259]
[1730818968684,22.15394834,166.62,166.59,21.7158259]
[1730818968903,22.15394834,166.6,166.59,21.7158259]
[1730818971002,22.15394834,166.6,166.59,6.7089259]
[1730818971385,22.40492834,166.6,166.59,0.7062259]
[1730818972794,28.40732834,166.6,166.59,0.7062259]
[1730818973107,72.18421234,166.6,166.59,0.7062259]
[1730818973310,72.18421234,166.6,166.53,21.0166]
[1730818973311,43.776884,166.59,166.53,15.012]
[1730818973605,22.15394834,166.54,166.53,21.0168]
[1730818973782,22.15394834,166.55,166.53,21.0168]
[1730818974201,0.25098,166.58,166.53,21.0168]
[1730818974202,22.15394834,166.56,166.53,21.0168]
[1730818974400,22.15394834,166.55,166.53,21.0168]
[1730818974588,22.15394834,166.56,166.53,21.0168]
[1730818974785,22.15394834,166.55,166.53,21.0168]
[1730818974984,22.15394834,166.54,166.53,21.0168]
[1730818975185,22.15394834,166.55,166.53,15.012]
[1730818975810,22.15394834,166.54,166.53,15.012]
[1730818976393,22.15394834,166.55,166.53,15.012]
[1730818976587,22.15394834,166.56,166.53,15.012]
[1730818976999,22.15394834,166.55,166.53,15.012]
[1730818977312,22.15394834,166.54,166.53,15.012]
[1730818977895,22.15394834,166.58,166.53,37.16594834]
[1730818978100,22.15394834,166.57,166.53,15.012]
[1730818978437,22.15394834,166.55,166.53,15.012]
[1730818978607,22.15394834,166.57,166.53,15.012]
[1730818978797,22.15394834,166.56,166.53,15.012]
[1730818978997,22.15394834,166.55,166.53,15.012]
[1730818979206,22.15394834,166.54,166.53,15.012]
[1730818979393,22.15394834,166.55,166.53,15.012]
[1730818980000,22.15394834,166.56,166.53,15.012]
[1730818980216,22.15394834,166.58,166.53,15.012]
[1730818980393,22.15394834,166.61,166.55,22.15394834]
[1730818980593,22.15394834,166.6,166.54,22.15394834]
[1730818980793,22.15394834,166.59,166.54,22.15394834]
[1730818980994,22.15394834,166.57,166.53,15.012]
[1730818981295,22.15394834,166.6,166.54,22.15394834]
[1730818981598,0.1,166.67,166.54,22.15394834]
[1730818981599,22.15394834,166.62,166.56,22.15394834]
[1730818981914,22.15394834,166.61,166.55,22.15394834]
[1730818982118,12.4138,166.7,166.58,22.15394834]
[1730818982333,22.15394834,166.62,166.57,22.15394834]
[1730818982505,22.15394834,166.58,166.53,81.0661]
[1730818982708,22.15394834,166.56,166.53,81.0661]
[1730818982897,0.1,166.67,166.53,51.0415]
[1730818983225,22.15394834,166.57,166.53,45.0366]
[1730818983612,22.15394834,166.56,166.53,45.0366]
[1730818984011,22.15394834,166.57,166.53,45.0366]
[1730818984214,22.15394834,166.56,166.53,45.0366]
[1730818984411,22.15394834,166.57,166.53,45.0366]
[1730818984596,22.15394834,166.56,166.53,45.0366]
[1730818984998,22.15394834,166.54,166.53,15.012]
[1730818985729,22.15394834,166.54,166.52,6.0052]
[1730818986025,22.15394834,166.53,166.51,6.0056]
[1730818986229,22.15394834,166.52,166.5,0.3150707]
[1730818986535,22.40492834,166.51,166.5,0.3150707]
[1730818986703,20.0,166.5,166.44,6.008]
[1730818986913,22.15394834,166.45,166.44,6.008]
[1730818987099,0.25098,166.52,166.44,51.0692]
[1730818987305,22.15394834,166.48,166.44,51.0692]
[1730818987507,22.15394834,166.47,166.44,51.0692]
[1730818987702,22.15394834,166.46,166.44,51.0692]
[1730818987920,26.0047,166.54,166.44,51.0692]
[1730818987921,22.15394834,166.48,166.44,51.0692]
[1730818988233,22.15394834,166.47,166.44,45.0612]
[1730818988402,22.15394834,166.46,166.44,15.0204]
[1730818988602,22.15394834,166.45,166.44,15.0204]
[1730818988818,22.15394834,166.46,166.44,15.0204]
[1730818989322,22.15394834,166.45,166.44,15.0204]
[1730818989528,22.15394834,166.46,166.44,15.0204]
[1730818989729,22.15394834,166.48,166.44,15.0204]
[1730818989915,22.15394834,166.51,166.45,22.15394834]
[1730818990431,22.15394834,166.51,166.46,21.026]
[1730818990905,22.15394834,166.5,166.46,21.026]
[1730818991110,22.15394834,166.5,166.46,51.0632]
[1730818991803,22.15394834,166.49,166.46,51.0632]
[1730818992222,22.15394834,166.5,166.46,45.0558]
[1730818992429,22.15394834,166.51,166.46,45.0558]
[1730818992724,22.15394834,166.52,166.46,67.20974834]
[1730818992932,22.15394834,166.53,166.47,22.15394834]
[1730818993130,21.3808,166.58,166.46,45.0558]
[1730818993131,22.15394834,166.51,166.46,45.0558]
[1730818993444,22.15394834,166.53,166.48,22.15394834]
[1730818993812,22.15394834,166.54,166.48,22.15394834]
[1730818994128,22.15394834,166.6,166.53,22.15394834]
[1730818994302,24.138658,166.67,166.56,22.15394834]
[1730818994303,22.15394834,166.61,166.56,22.15394834]
[1730818994706,22.15394834,166.63,166.57,22.15394834]
[1730818995512,22.15394834,166.67,166.61,22.15394834]
[1730818995710,22.15394834,166.69,166.63,22.15394834]
[1730818995904,6.3131707,166.72,166.59,23.776884]
[1730818996325,0.1,166.7,166.6,21.0084]
[1730818996518,6.4131707,166.72,166.6,21.0084]
[1730818996831,0.1,166.7,166.6,21.0084]
[1730818997008,22.15394834,166.64,166.6,21.0084]
[1730818997217,22.15394834,166.65,166.6,21.0084]
[1730818997407,22.15394834,166.62,166.6,21.0084]
[1730818997636,22.15394834,166.61,166.56,15.009]
[1730818997912,22.15394834,166.58,166.56,15.009]
[1730818998211,22.15394834,166.58,166.55,6.0042]
[1730818998212,22.15394834,166.57,166.52,15.0128]
[1730818998406,22.15394834,166.57,166.49,28.76104834]
[1730818998407,22.15394834,166.53,166.49,6.6071]
[1730818998625,22.15394834,166.5,166.48,21.0232]
[1730818999119,22.15394834,166.51,166.48,21.0232]
[1730818999325,22.15394834,166.53,166.48,21.0232]
[1730818999829,22.15394834,166.56,166.49,22.15394834]
[1730819000139,22.15394834,166.57,166.51,22.15394834]
[1730819000314,22.15394834,166.53,166.48,22.15394834]
[1730819000513,0.25098,166.59,166.48,15.016]
[1730819000715,22.15394834,166.49,166.45,6.0078]
[1730819000914,22.15394834,166.5,166.45,6.0078]
[1730819001137,22.15394834,166.53,166.47,22.15394834]
[1730819001338,24.027864,166.59,166.45,21.0273]
[1730819001545,23.776884,166.57,166.45,21.0273]
[1730819001846,0.25098,166.56,166.45,21.0273]
[1730819002136,24.027864,166.6,166.46,0.12549]
[1730819002339,22.15394834,166.57,166.51,43.17364834]
[1730819002519,22.15394834,166.53,166.51,21.0197]
[1730819002717,22.15394834,166.52,166.51,21.0197]
[1730819003016,22.15394834,166.52,166.47,21.0238]
[1730819003437,22.15394834,166.53,166.47,43.17774834]
[1730819003620,22.15394834,166.51,166.47,21.0238]
[1730819004031,22.15394834,166.54,166.48,22.15394834]
[1730819004233,22.15394834,166.52,166.47,51.0592]
[1730819004628,22.15394834,166.56,166.5,22.15394834]
[1730819004827,22.15394834,166.57,166.51,22.15394834]
[1730819005139,22.15394834,166.66,166.57,23.776884]
[1730819005344,6.3131707,166.72,166.57,23.876884]
[1730819005636,22.15394834,166.67,166.61,22.15394834]
[1730819005835,28.46711904,166.72,166.57,23.876884]
[1730819006021,22.15394834,166.67,166.62,51.0142]
[1730819006231,22.15394834,166.69,166.64,22.15394834]
[1730819006542,22.15394834,166.68,166.62,73.16814834]
[1730819006841,22.15394834,166.67,166.62,51.0142]
[1730819007040,22.15394834,166.68,166.62,73.16814834]
[1730819007249,22.15394834,166.64,166.62,15.0042]
[1730819007440,22.15394834,166.63,166.58,15.0076]
[1730819007746,22.15394834,166.61,166.58,15.0076]
[1730819007937,22.15394834,166.63,166.58,15.0076]
[1730819008115,25.73442281,166.62,166.58,15.0076]
[1730819008322,22.15394834,166.61,166.58,15.0076]
[1730819008543,22.15394834,166.63,166.58,15.0076]
[1730819008743,3.58064909,166.62,166.58,15.0076]
[1730819008928,0.1,166.7,166.59,22.15394834]
[1730819008929,22.15394834,166.65,166.59,22.15394834]
[1730819009126,25.73416591,166.64,166.58,22.15394834]
[1730819009439,22.15394834,166.64,166.58,22.15394834]
[1730819009641,22.15394834,166.67,166.61,22.15394834]
[1730819009836,22.15394834,166.62,166.55,21.0147]
[1730819010036,22.15394834,166.6,166.57,15.0087]
[1730819010347,0.2,166.65,166.57,15.0087]
[1730819010535,22.15394834,166.58,166.55,6.0042]
[1730819011121,22.15394834,166.56,166.55,6.0042]
[1730819011525,22.15394834,166.56,166.5,28.66584834]
[1730819011724,22.15394834,166.56,166.52,15.0131]
[1730819012744,22.15394834,166.55,166.52,15.0131]
[1730819013044,22.15394834,166.56,166.52,15.0131]
[1730819013236,22.15394834,166.58,166.52,37.16704834]